bitfinex/quotes_ETHUSD_20260111
["timestamp","ask_amount","ask_price","bid_price","bid_amount"]
[1768175257000,4.17496244,3118.7,3118.2,0.001]
[1768175257169,3.20651764,3118.7,3118.2,0.001]
[1768175258105,3.20651764,3118.7,3118.2,0.94737466]
[1768175260009,0.000804,3118.9,3118.3,0.94637466]
[1768175260210,0.000804,3118.9,3118.5,0.94637466]
[1768175260902,0.000804,3118.9,3118.2,0.001]
[1768175261103,3.20707711,3118.9,3118.2,0.001]
[1768175261273,3.20707711,3118.9,3118.2,0.94737466]
[1768175261605,0.000804,3118.9,3118.2,4.15433437]
[1768175261810,0.000804,3118.9,3118.3,1.3618081]
[1768175262899,0.000804,3118.9,3118.5,0.94637466]
[1768175263693,3.45989862,3119.3,3118.3,3.6222262]
[1768175263694,0.002,3119.3,3118.9,0.94637466]
[1768175265302,0.002,3119.3,3118.6,0.94637466]
[1768175265909,0.002,3119.3,3118.6,4.15293642]
[1768175266080,0.002,3118.9,3118.7,0.41547405]
[1768175266584,0.002,3118.9,3118.6,0.94637466]
[1768175267208,0.002,3118.9,3118.6,4.15291578]
[1768175267434,0.002,3118.9,3118.6,0.94637466]
[1768175268393,0.002,3118.9,3118.6,4.15294068]
[1768175269695,0.002,3118.9,3118.6,0.94637466]
[1768175270722,0.002,3118.9,3118.6,4.15291352]
[1768175271339,0.002,3118.9,3118.7,0.41547176]
[1768175271503,0.002,3118.9,3118.5,0.00180408]
[1768175271708,0.002,3119.3,3118.9,0.94637466]
[1768175272028,0.002,3119.6,3119.1,0.94637466]
[1768175273826,0.002,3119.6,3118.9,0.94637466]
[1768175274031,0.002,3119.6,3118.5,0.00180408]
[1768175274032,0.9684448,3119.5,3118.7,0.252]
[1768175274238,0.9684448,3119.5,3118.7,3.45840051]
[1768175274623,0.9684448,3119.5,3118.7,1.19837466]
[1768175274818,0.9684448,3119.5,3118.7,4.40481033]
[1768175275004,0.9684448,3119.5,3118.8,0.44048103]
[1768175275955,0.002,3119.6,3118.9,0.94637466]
[1768175277040,0.002,3119.6,3119.1,0.94637466]
[1768175277851,0.002,3119.6,3119.2,0.001]
[1768175278150,0.002,3119.3,3119.2,0.001]
[1768175280323,0.9704448,3119.3,3119.2,0.001]
[1768175281743,0.9684448,3119.2,3118.5,0.00180408]
[1768175283945,0.97333559,3119.0,3118.5,0.00180408]
[1768175284525,6.41210604,3119.1,3118.5,0.00180408]
[1768175284752,7.38544163,3119.1,3118.5,0.00180408]
[1768175285086,0.97333559,3118.9,3118.5,0.00180408]
[1768175285221,0.97333559,3118.9,3118.2,0.001]
[1768175285563,0.97413967,3118.9,3118.2,0.001]
[1768175285762,3.20636142,3118.8,3118.2,0.001]
[1768175287039,0.00080408,3118.9,3118.2,0.001]
[1768175287373,3.20710887,3118.9,3118.2,0.90206632]
[1768175287533,3.58669756,3118.9,3118.2,0.90206632]
[1768175287952,0.38039277,3118.9,3118.2,0.90206632]
[1768175288321,3.58670346,3118.9,3118.2,0.90206632]
[1768175289465,3.58670346,3118.9,3118.5,0.001]
[1768175289768,0.002,3118.6,3118.5,0.001]
[1768175298089,0.002,3118.6,3118.5,0.99330841]
[1768175298470,0.00280408,3118.9,3118.5,0.99330841]
[1768175299616,0.91975564,3118.9,3118.5,0.001]
[1768175301199,3.20636142,3118.8,3118.5,0.001]
[1768175301397,0.002,3118.6,3118.5,0.001]
[1768175302406,0.002,3119.3,3118.6,0.99230841]
[1768175302804,0.002,3119.3,3118.7,0.252]
[1768175304117,0.002,3119.3,3118.7,0.44526602]
[1768175304285,0.002,3119.3,3118.8,0.252]
[1768175305316,0.91895156,3119.3,3118.5,0.00180416]
[1768175305479,0.91895156,3119.3,3118.6,0.252]
[1768175307518,0.91695156,3119.2,3118.5,0.00180416]
[1768175307840,0.91695156,3119.0,3118.5,0.00180416]
[1768175308705,0.41248848,3119.1,3118.5,0.00180416]
[1768175308906,1.32944004,3119.1,3118.5,0.00180416]
[1768175309503,0.41248848,3119.1,3118.5,0.00180416]
[1768175309684,3.20598568,3119.2,3118.5,0.00180416]
[1768175309891,3.20598568,3119.2,3118.5,0.99411257]
[1768175310212,0.002,3119.3,3118.5,0.99411257]
[1768175312208,0.002,3119.3,3118.7,0.99230841]
[1768175312996,0.002,3119.3,3118.9,0.99230841]
[1768175313192,0.002,3119.3,3119.1,0.99230841]
[1768175322107,0.002,3119.3,3119.2,1.44408211]
[1768175322540,0.002,3119.3,3119.2,0.9990394]
[1768175322701,0.002,3119.3,3119.0,0.252]
[1768175322902,0.002,3119.3,3119.1,0.9990394]
[1768175323520,0.002,3119.3,3119.1,1.2510394]
[1768175326703,0.002,3119.3,3119.2,0.9990394]
[1768175327314,0.002,3119.3,3119.2,1.44475317]
[1768175330438,0.002,3119.3,3119.2,1.69675317]
[1768175330638,0.002,3119.3,3119.2,1.2510394]
[1768175330945,0.002,3119.6,3119.2,0.252]
[1768175332408,0.90988774,3119.6,3118.8,0.001]
[1768175332608,0.90788774,3119.4,3118.5,0.00180416]
[1768175332845,0.26170292,3119.5,3118.2,0.001]
[1768175332846,0.90788774,3118.8,3118.2,0.001]
[1768175333144,0.90788774,3118.8,3117.9,0.001]
[1768175333145,0.90788774,3118.7,3117.9,0.001]
[1768175333333,0.252,3118.8,3117.9,1.0000394]
[1768175333538,0.252,3118.8,3118.0,0.9990394]
[1768175333837,1.15988774,3118.8,3117.9,0.42174745]
[1768175334043,0.90788774,3118.7,3117.9,0.42174745]
[1768175334242,0.90788774,3118.7,3117.9,0.001]
[1768175334744,0.252,3118.8,3117.9,0.001]
[1768175334745,4.11445478,3118.6,3117.9,0.001]
[1768175335121,0.252,3118.8,3117.9,1.0000394]
[1768175335318,3.20710889,3118.9,3118.0,0.9990394]
[1768175335736,0.90788774,3118.8,3118.0,0.252]
[1768175335934,1.64002075,3118.7,3117.9,0.253]
[1768175336246,3.20710889,3118.9,3118.0,0.9990394]
[1768175336739,0.002,3118.5,3118.0,0.9990394]
[1768175337548,0.002,3118.5,3118.1,0.9990394]
[1768175340242,0.002,3118.5,3117.9,0.001]
[1768175340449,0.002,3118.5,3118.0,0.252]
[1768175340753,0.002,3118.5,3117.9,1.0000394]
[1768175340940,0.002,3118.5,3118.0,0.9990394]
[1768175343752,0.002,3118.5,3118.1,0.9990394]
[1768175345220,0.002,3118.5,3118.3,0.98770512]
[1768175346324,0.002,3118.8,3118.2,3.20697838]
[1768175346569,0.002,3118.8,3118.2,6.41395676]
[1768175346760,0.002,3118.8,3118.3,0.38975007]
[1768175347358,0.002,3118.8,3118.4,3.2067727]
[1768175347659,0.002,3118.8,3118.5,0.98770512]
[1768175347898,0.90566937,3119.6,3118.6,0.98770512]
[1768175348683,3.20566432,3119.5,3118.6,0.98770512]
[1768175349020,0.41113337,3119.4,3118.6,4.19425287]
[1768175349302,0.002,3118.8,3118.7,0.98770512]
[1768175349482,0.41113337,3119.4,3118.7,0.98770512]
[1768175349958,0.002,3119.6,3118.9,0.90341037]
[1768175350454,3.20754264,3119.6,3118.9,0.90341037]
[1768175351891,0.002,3119.6,3118.9,0.90341037]
[1768175352813,0.91113826,3119.6,3118.5,4.3628175]
[1768175352959,0.90913826,3119.4,3118.5,1.15621461]
[1768175353156,0.90913826,3119.4,3118.5,4.36283647]
[1768175353461,0.90913826,3119.4,3118.5,1.15621461]
[1768175353667,0.90913826,3119.4,3118.5,4.36282631]
[1768175354098,4.11488438,3119.4,3118.5,4.36282631]
[1768175354390,4.6257551,3119.4,3118.5,4.36282631]
[1768175355392,1.42000898,3119.4,3118.5,4.36282631]
[1768175356274,4.62576355,3119.4,3118.5,1.15621461]
[1768175356472,0.90913826,3119.3,3118.5,0.00080424]
[1768175356776,0.90913826,3119.1,3118.5,0.00080424]
[1768175358898,4.11521192,3119.1,3118.5,0.00080424]
[1768175359405,0.90913826,3119.1,3118.5,0.00080424]
[1768175359895,4.11519957,3119.1,3118.5,0.00080424]
[1768175360096,0.90913826,3119.1,3118.5,0.00080424]
[1768175360394,0.4898166,3119.1,3118.5,0.90421461]
[1768175360592,3.20564192,3119.5,3118.8,0.001]
[1768175360896,0.002,3119.3,3118.8,0.90441037]
[1768175362095,0.002,3119.3,3118.8,0.001]
[1768175362301,3.20784746,3119.3,3118.8,0.001]
[1768175362506,0.73227429,3119.2,3118.8,0.001]
[1768175365376,3.93823005,3119.2,3118.8,0.001]
[1768175366837,0.73227429,3119.2,3118.8,0.001]
[1768175368404,3.20595727,3119.2,3118.8,0.001]
[1768175369430,4.11509553,3119.2,3118.8,0.001]
[1768175369632,0.90913826,3119.1,3118.8,0.001]
[1768175369847,3.20595727,3119.2,3118.8,0.001]
[1768175370049,3.20787926,3119.3,3118.8,0.001]
[1768175371046,0.73426791,3119.3,3118.8,0.90441037]
[1768175371246,0.002,3119.3,3118.8,0.90441037]
[1768175372457,0.002,3119.0,3118.8,0.90441037]
[1768175374072,0.002,3119.0,3118.8,0.001]
[1768175374416,0.92471773,3119.0,3118.5,0.00080424]
[1768175374922,0.92271773,3118.8,3117.8,0.90138607]
[1768175375122,0.92271773,3118.8,3117.7,0.252]
[1768175375547,0.92271773,3118.8,3117.7,4.3608594]
[1768175375749,0.92271773,3118.6,3117.6,0.00080456]
[1768175375948,0.92271773,3118.4,3117.6,0.00080456]
[1768175377019,0.92271773,3117.9,3117.0,0.00080544]
[1768175377848,0.92271773,3117.7,3117.0,0.00080544]
[1768175379074,0.92271773,3117.9,3117.0,0.90219151]
[1768175379272,1.33579199,3117.9,3117.0,0.90219151]
[1768175379860,4.54314966,3117.9,3117.0,0.90219151]
[1768175380457,0.92271773,3117.8,3117.0,0.90219151]
[1768175381161,0.92271773,3117.8,3117.0,4.11039112]
[1768175381571,0.92271773,3117.8,3117.0,0.90219151]
[1768175382744,0.92271773,3117.8,3117.0,4.11038348]
[1768175383281,4.13011749,3117.8,3117.0,0.90219151]
[1768175383436,4.90523571,3117.8,3117.0,0.90219151]
[1768175384073,4.90523571,3117.8,3117.3,0.001]
[1768175384240,0.002,3117.5,3117.3,0.001]
[1768175385380,0.92471773,3117.5,3117.3,0.001]
[1768175385782,0.92471773,3117.5,3117.0,0.00080544]
[1768175385973,0.92471773,3117.5,3116.7,0.001]
[1768175385974,0.92471773,3117.5,3116.4,0.73661173]
[1768175386147,0.00080488,3116.8,3116.5,0.90138607]
[1768175387181,0.00080488,3116.8,3116.3,0.90138607]
[1768175387748,0.00080488,3116.8,3116.4,0.90138607]
[1768175388480,0.00080488,3116.8,3116.4,4.11020132]
[1768175388778,0.00080488,3116.8,3116.4,0.90138607]
[1768175389683,0.00080488,3116.8,3116.5,0.90138607]
[1768175390174,0.92271773,3117.3,3116.4,6.41764587]
[1768175390381,0.92271773,3117.3,3116.4,6.41845083]
[1768175390546,0.92271773,3117.2,3116.4,6.41845083]
[1768175390747,0.41332745,3117.3,3116.5,0.90138607]
[1768175390948,1.33604518,3117.3,3116.5,0.90138607]
[1768175391384,0.00080544,3117.4,3116.5,0.90138607]
[1768175391548,0.002,3117.5,3116.5,0.90138607]
[1768175391749,0.002,3117.5,3117.1,0.90138607]
[1768175393700,0.002,3117.5,3117.0,0.00080552]
[1768175393852,0.92471773,3117.5,3117.0,0.00080552]
[1768175394057,1.65671398,3117.4,3117.0,0.00080552]
[1768175396054,0.92271773,3117.2,3117.0,0.00080552]
[1768175398888,4.13075201,3117.2,3117.0,0.00080552]
[1768175399085,3.20803428,3117.2,3117.0,0.00080552]
[1768175399308,3.20795073,3117.3,3117.0,0.00080552]
[1768175399461,0.41306685,3117.2,3117.0,0.00080552]
[1768175400158,3.62108607,3117.2,3117.0,0.00080552]
[1768175400353,0.92271773,3117.1,3116.4,0.00080496]
[1768175400770,0.41306685,3117.2,3116.5,0.90138607]
[1768175400976,0.41306685,3117.2,3116.5,4.11010978]
[1768175401358,0.00080552,3117.4,3116.6,0.90138607]
[1768175402276,0.00080552,3117.4,3116.7,0.90138607]
[1768175403564,0.00080552,3117.4,3116.8,0.90138607]
[1768175404162,0.00080552,3117.4,3117.0,0.96422214]
[1768175405993,0.96336557,3117.4,3116.6,0.96422214]
[1768175406782,4.17126886,3117.4,3116.6,0.96422214]
[1768175407396,0.73809754,3117.3,3116.6,0.96422214]
[1768175407562,0.00080552,3117.4,3116.7,0.96422214]
[1768175407899,0.00080496,3116.8,3116.3,0.96422214]
[1768175408060,0.00080496,3116.8,3116.2,0.252]
[1768175408999,0.00080496,3116.8,3116.2,3.46101854]
[1768175409199,0.00080496,3116.8,3116.3,0.99631147]
[1768175409402,0.00080496,3116.8,3116.3,0.798726]
[1768175409597,0.00080552,3117.4,3116.4,0.92429316]
[1768175409770,0.00080552,3117.4,3116.4,0.9250982]
[1768175410294,0.00080552,3117.4,3116.6,0.92429316]
[1768175410499,0.00080552,3117.4,3116.8,0.92429316]
[1768175410807,0.00080552,3117.4,3116.9,0.92429316]
[1768175411898,0.00080552,3117.4,3116.9,4.13258342]
[1768175412276,0.00080552,3117.4,3116.9,4.52237826]
[1768175413599,0.00080552,3117.4,3116.9,1.314088]
[1768175414499,0.00080552,3117.4,3117.0,0.92429316]
[1768175419029,0.002,3117.1,3117.0,0.92429316]
[1768175419272,0.00080552,3117.4,3117.0,0.92429316]
[1768175419429,0.00080552,3117.4,3116.9,0.252]
[1768175419430,0.83930866,3117.4,3116.9,0.252]
[1768175420077,0.00280552,3117.4,3116.9,1.17629316]
[1768175420281,0.00280552,3117.4,3117.0,0.92429316]
[1768175420589,0.00280552,3117.4,3117.1,0.95637426]
[1768175420798,0.00280552,3117.4,3117.2,3.20800718]
[1768175421001,0.00280552,3117.4,3117.3,0.92429316]
[1768175421926,0.83650309,3117.7,3117.2,3.20800718]
[1768175422091,0.83650309,3117.7,3117.3,0.32400883]
[1768175422292,0.83650309,3117.7,3117.2,3.20800718]
[1768175422492,0.002,3117.8,3117.3,0.92429316]
[1768175423531,0.002,3117.8,3117.3,4.13215742]
[1768175424324,0.002,3117.8,3117.3,0.92429316]
[1768175425041,0.00080424,3118.9,3117.3,0.92429316]
[1768175425042,6.472,3119.3,3118.5,0.92509748]
[1768175425200,0.002,3119.3,3118.6,1.04035583]
[1768175427355,0.002,3119.3,3118.8,0.92429316]
[1768175429423,0.002,3119.3,3118.8,4.13062682]
[1768175429621,0.002,3119.3,3118.9,0.92429316]
[1768175431234,0.002,3119.0,3118.9,0.92429316]
[1768175431945,0.002,3120.2,3119.6,0.92429316]
[1768175432148,0.002,3120.2,3119.6,0.92509676]
[1768175433446,3.20694542,3120.2,3119.6,0.0008036]
[1768175433652,0.32089454,3120.0,3119.6,0.0008036]
[1768175434569,0.002,3120.2,3119.6,0.0008036]
[1768175434950,0.002,3120.2,3119.6,0.97110839]
[1768175440078,0.00080112,3120.8,3120.1,0.97030479]
[1768175440381,0.00080112,3120.8,3120.2,0.00083348]
[1768175443222,0.002,3120.5,3120.2,0.00083348]
[1768175444315,0.84450256,3120.5,3120.1,0.00080112]
[1768175444521,7.25193724,3120.4,3119.9,0.001]
[1768175444818,0.72547384,3120.3,3119.9,0.001]
[1768175445597,0.72547384,3120.3,3119.9,0.97130479]
[1768175445796,0.00280112,3120.5,3119.9,0.97130479]
[1768175447242,0.00280112,3120.5,3119.9,4.17647694]
[1768175447534,0.00280112,3120.5,3120.0,0.97030479]
[1768175454544,0.00280112,3120.5,3120.1,0.97030479]
[1768175454834,0.0008012,3121.5,3120.5,0.97030479]
[1768175455135,0.0008012,3121.5,3120.7,0.97030479]
[1768175455136,3.2045063,3121.4,3120.7,0.97030479]
[1768175455337,0.32053075,3121.3,3120.7,0.97030479]
[1768175456034,3.52433388,3121.3,3120.7,0.97030479]
[1768175456740,0.32053075,3121.3,3120.7,0.97030479]
[1768175456930,3.20455532,3121.4,3120.7,0.97030479]
[1768175458637,6.40830952,3121.4,3120.7,0.97030479]
[1768175459012,3.20455532,3121.4,3120.7,0.97030479]
[1768175459212,6.40830952,3121.4,3120.7,0.97030479]
[1768175460116,0.00080112,3121.4,3120.7,4.17469106]
[1768175460322,0.00080112,3121.4,3120.9,0.97030479]
[1768175460629,0.84250228,3121.3,3120.4,0.0008012]
[1768175460830,0.84250228,3121.3,3120.5,3.45656055]
[1768175461356,0.84250228,3121.3,3120.4,0.0008012]
[1768175461553,0.84250228,3121.3,3120.6,0.252]
[1768175461741,0.00080112,3121.4,3120.6,0.252]
[1768175461934,0.00080112,3121.4,3120.7,0.97030479]
[1768175463051,0.00080112,3121.4,3120.4,0.0008012]
[1768175463255,0.00080112,3121.4,3120.5,1.22230479]
[1768175463457,0.84250223,3121.3,3120.4,0.0008012]
[1768175463857,0.25280112,3121.4,3120.4,0.97110599]
[1768175464060,0.25280112,3121.4,3120.5,0.99298377]
[1768175465555,3.20379329,3121.3,3120.5,0.99298377]
[1768175465742,0.34565944,3121.2,3120.5,0.99298377]
[1768175466334,0.84250217,3120.8,3120.2,0.00083356]
[1768175466536,0.0008012,3120.5,3119.5,0.99298377]
[1768175466739,0.84330337,3120.5,3119.3,0.99298377]
[1768175467147,0.84330337,3120.5,3119.4,1.02504121]
[1768175467468,1.09450215,3120.4,3119.5,3.20558264]
[1768175467668,1.09450215,3120.4,3118.2,3.21662866]
[1768175467669,1.04126746,3118.7,3117.6,0.99378841]
[1768175467968,0.00080432,3118.9,3117.7,0.99298377]
[1768175468124,0.00080432,3118.9,3118.0,0.00970292]
[1768175468324,0.00080432,3118.9,3118.5,0.99298377]
[1768175468550,0.252,3119.5,3118.5,0.0008044]
[1768175468753,0.84330646,3119.9,3118.5,0.0008044]
[1768175469058,0.252,3119.4,3118.5,0.0008044]
[1768175469556,0.252,3119.4,3118.5,0.98568894]
[1768175469958,6.41046186,3119.9,3118.5,0.98568894]
[1768175470121,0.252,3119.5,3118.5,0.98568894]
[1768175470322,0.252,3119.5,3118.5,0.0008044]
[1768175470938,0.252,3119.5,3118.5,0.98568894]
[1768175471658,3.20574469,3119.4,3118.5,0.98568894]
[1768175472426,6.41148938,3119.4,3118.5,0.98568894]
[1768175472655,0.66634894,3119.3,3118.5,0.98568894]
[1768175474155,3.20578222,3119.4,3118.5,0.98568894]
[1768175474955,0.84330636,3119.3,3118.5,0.0008044]
[1768175475156,0.252,3119.3,3118.5,0.0008044]
[1768175475338,6.41156444,3119.4,3118.5,0.0008044]
[1768175475542,0.64115644,3119.3,3118.5,0.0008044]
[1768175475934,3.20595024,3119.2,3118.5,0.0008044]
[1768175476129,6.41190048,3119.2,3118.5,0.0008044]
[1768175476334,3.20595024,3119.2,3118.5,0.0008044]
[1768175477161,3.20595024,3119.2,3118.5,0.98568894]
[1768175477363,0.38471067,3119.1,3118.5,0.98568894]
[1768175478050,3.5908088,3119.1,3118.5,0.98568894]
[1768175478577,0.38471067,3119.1,3118.5,0.98568894]
[1768175478736,3.8470732,3119.3,3118.5,0.98568894]
[1768175479486,7.05298127,3119.3,3118.5,0.98568894]
[1768175481178,7.05298127,3119.3,3118.5,0.0008044]
[1768175481744,0.84330627,3119.2,3118.5,0.0008044]
[1768175482173,6.41210604,3119.1,3118.5,0.0008044]
[1768175482372,0.0008044,3118.9,3118.3,0.252]
[1768175485063,0.0008044,3118.9,3118.4,0.98488454]
[1768175494808,0.0008044,3118.9,3118.5,1.01409103]
[1768175495012,0.0008044,3118.9,3118.5,0.98202434]
[1768175495948,0.0008044,3118.9,3118.6,0.252]
[1768175497245,0.40603103,3118.9,3118.6,0.252]
[1768175499023,3.61229341,3118.9,3118.6,0.252]
[1768175499629,0.40603103,3118.9,3118.6,0.252]
[1768175499962,0.0008044,3118.9,3118.6,0.252]
[1768175500927,0.0008044,3118.9,3118.6,1.26609001]
[1768175502114,0.002,3119.3,3118.7,0.98202434]
[1768175503739,0.002,3119.3,3118.9,0.98202434]
[1768175503740,3.99e-06,3119.3,3118.9,0.98202434]
[1768175505364,3.99e-06,3119.3,3118.9,0.41883782]
[1768175505564,3.99e-06,3119.3,3118.8,0.98202434]
[1768175505767,3.99e-06,3119.3,3118.9,0.252]
[1768175508354,3.99e-06,3119.3,3118.9,1.23402434]
[1768175508850,3.99e-06,3119.3,3118.9,0.252]
[1768175509158,0.84330997,3119.3,3118.9,0.252]
[1768175510348,3.99e-06,3119.3,3118.9,0.252]
[1768175510970,3.99e-06,3119.3,3118.9,1.23402434]
[1768175511174,3.99e-06,3119.3,3119.0,0.98202434]
[1768175511555,3.2052808,3119.9,3119.2,0.98202434]
[1768175512490,0.0008036,3120.0,3119.2,0.98202434]
[1768175512854,0.0008036,3120.0,3119.3,0.98202434]
[1768175513172,0.0008036,3120.0,3119.4,0.252]
[1768175513342,0.72641603,3120.0,3119.4,0.252]
[1768175514545,0.72641603,3120.0,3119.4,1.23402434]
[1768175514739,3.93159729,3120.0,3119.4,1.23402434]
[1768175516278,0.002,3119.7,3119.4,1.23402434]
[1768175517592,0.002,3119.7,3119.5,0.98202434]
[1768175517785,0.002,3119.7,3119.4,0.252]
[1768175519801,0.002,3119.7,3119.4,1.23402434]
[1768175521393,0.002,3120.2,3119.7,0.98202434]
[1768175521597,0.00283356,3120.6,3120.2,0.98202434]
[1768175521907,0.00283356,3120.6,3120.3,0.252]
[1768175522987,0.00283356,3120.6,3120.3,1.23402434]
[1768175523227,0.00283356,3120.6,3120.4,0.98202434]
[1768175524017,0.00283356,3120.6,3120.3,0.252]
[1768175524694,0.00283356,3120.6,3120.0,0.95937353]
[1768175524980,0.00283356,3120.6,3120.1,0.252]
[1768175525201,0.00283356,3120.6,3120.2,0.95937353]
[1768175527014,0.00283356,3120.6,3120.3,0.95937353]
[1768175527723,0.00283356,3120.6,3120.1,1.21137353]
[1768175529016,0.002,3120.2,3120.1,1.21137353]
[1768175530323,0.002,3120.2,3119.7,0.93566802]
[1768175530494,0.002,3120.2,3120.1,1.18766802]
[1768175532032,0.0028012,3120.5,3120.1,0.252]
[1768175532928,0.0028012,3120.5,3120.2,0.93566802]
[1768175536131,0.0008012,3120.8,3120.2,0.93650166]
[1768175537297,0.002,3121.1,3120.3,0.93566802]
[1768175537499,0.00280112,3121.4,3121.1,0.93566802]
[1768175537799,0.00280112,3121.4,3121.2,0.252]
[1768175539646,0.0008012,3121.5,3121.2,0.252]
[1768175541519,0.84410692,3121.5,3121.0,0.0008012]
[1768175541716,0.40476167,3121.4,3121.3,0.252]
[1768175541923,0.0008012,3121.5,3121.3,0.252]
[1768175544132,0.55796278,3121.8,3121.4,0.93566802]
[1768175545214,3.76125804,3121.8,3121.4,0.93566802]
[1768175545412,0.55796278,3121.8,3121.4,0.93566802]
[1768175546502,3.76124765,3121.8,3121.4,0.93566802]
[1768175547014,0.55796278,3121.8,3121.4,0.93566802]
[1768175547217,3.76124868,3121.8,3121.4,0.93566802]
[1768175547606,0.55796278,3121.8,3121.5,0.252]
[1768175548229,0.55796278,3121.8,3121.5,1.18766802]
[1768175549814,3.76127488,3121.8,3121.5,1.18766802]
[1768175550149,3.76127488,3121.8,3121.3,0.93566802]
[1768175550321,3.76127488,3121.8,3121.6,0.252]
[1768175550829,0.55796278,3121.8,3121.6,0.252]
[1768175552235,0.55796278,3121.8,3121.6,1.18766802]
[1768175553022,0.55796278,3121.8,3121.6,0.252]
[1768175555121,0.002,3122.1,3121.6,0.252]
[1768175555545,0.002,3122.1,3121.6,1.18718127]
[1768175556534,0.002,3122.1,3121.6,0.252]
[1768175557868,0.002,3122.1,3121.5,0.93598231]
[1768175558032,0.002,3122.1,3121.7,0.252]
[1768175558228,0.84530562,3122.1,3121.5,0.00080104]
[1768175558429,0.84410674,3121.8,3121.1,0.00080128]
[1768175558637,0.84410674,3121.8,3120.4,0.93598255]
[1768175558843,0.84410682,3121.4,3120.4,0.00080128]
[1768175559067,0.8416707,3120.5,3119.6,0.00080368]
[1768175559357,0.8416707,3120.5,3119.7,0.252]
[1768175559358,0.84247198,3120.5,3119.7,0.252]
[1768175559661,0.84247198,3120.5,3119.8,0.34583028]
[1768175559862,0.84247198,3120.5,3119.7,0.252]
[1768175560431,0.84247198,3120.5,3119.8,3.20533367]
[1768175560633,0.84247198,3120.5,3119.7,0.252]
[1768175561265,4.04709328,3120.5,3119.7,0.252]
[1768175561443,4.04709328,3120.5,3119.7,3.45740211]
[1768175561444,0.84247198,3120.5,3119.7,3.45740211]
[1768175561763,0.84247198,3120.5,3119.8,0.34582058]
[1768175562731,0.84247198,3120.5,3119.9,0.93518127]
[1768175562732,0.00080128,3120.5,3119.9,0.93518127]
[1768175564563,0.00080128,3120.5,3120.1,0.001]
[1768175564791,0.00080128,3120.5,3120.2,0.252]
[1768175575384,0.84167063,3120.5,3120.1,0.001]
[1768175575585,0.84167063,3120.5,3120.3,0.252]
[1768175575766,0.00080128,3120.5,3120.3,0.252]
[1768175576487,0.00280128,3120.5,3120.3,0.252]
[1768175581012,0.00280128,3120.5,3120.3,1.18718127]
[1768175581790,0.00280128,3120.5,3120.3,0.252]
[1768175582495,0.00080128,3120.8,3120.4,0.93518127]
[1768175582996,0.00080128,3120.8,3120.5,0.93518127]
[1768175588670,0.00280128,3120.8,3120.5,0.93518127]
[1768175590016,0.00280128,3120.8,3120.6,0.98605363]
[1768175591098,0.84167049,3121.4,3120.6,3.20447826]
[1768175591410,0.84167049,3121.4,3120.7,0.98605363]
[1768175591411,0.0008012,3121.4,3120.7,0.98605363]
[1768175591592,0.0008012,3121.4,3120.8,0.252]
[1768175592705,0.0008012,3121.4,3120.8,1.23805363]
[1768175592870,0.0008012,3121.4,3120.9,0.98605363]
[1768175594532,0.0008012,3121.4,3121.0,0.98605363]
[1768175595715,0.0008012,3121.4,3121.1,0.98605363]
[1768175596117,0.00080128,3121.5,3121.3,0.98605363]
[1768175596324,0.00280112,3121.8,3121.5,0.98605363]
[1768175602834,0.00280112,3121.8,3121.4,0.252]
[1768175603011,0.00280112,3121.8,3121.4,0.6961836]
[1768175603208,0.00280112,3121.8,3121.5,0.98605363]
[1768175605296,0.00280112,3121.8,3121.4,0.6961836]
[1768175609122,0.00280112,3121.8,3121.2,3.20386909]
[1768175609123,0.84367035,3121.8,3121.5,0.252]
[1768175609294,0.19680848,3121.6,3121.1,0.00080136]
[1768175609494,0.19680848,3121.6,3121.2,0.252]
[1768175609990,0.19680848,3121.6,3121.1,0.00080136]
[1768175610524,0.19680848,3121.6,3121.2,0.252]
[1768175611334,3.40030724,3121.6,3121.2,0.252]
[1768175611621,3.40030724,3121.6,3121.1,0.00080136]
[1768175611622,0.84086923,3121.5,3121.1,0.00080136]
[1768175611790,0.00080128,3121.4,3120.6,0.98605363]
[1768175611991,0.84086923,3121.3,3120.6,0.98605363]
[1768175612199,0.84086923,3121.3,3120.7,0.252]
[1768175612625,0.84086923,3121.3,3120.4,0.98685499]
[1768175612924,6.40779186,3121.2,3120.5,0.252]
[1768175613225,0.72486611,3121.1,3120.5,1.23805363]
[1768175614753,0.00080128,3121.4,3120.6,0.98817578]
[1768175615095,0.00080128,3121.4,3120.7,0.98817578]
[1768175618309,0.00080128,3121.4,3120.9,0.98817578]
[1768175618525,0.00080128,3121.4,3121.1,0.98817578]
[1768175622810,0.00080128,3121.4,3120.8,4.19243151]
[1768175623010,0.00080128,3121.4,3120.9,1.24017578]
[1768175623230,0.00080128,3121.4,3121.0,0.98817578]
[1768175625125,0.00080128,3121.4,3120.9,0.253]
[1768175625432,0.00080128,3121.4,3120.9,1.24117578]
[1768175625634,0.00080128,3121.4,3121.0,0.98817578]
[1768175626363,0.84167047,3121.4,3119.6,0.00080368]
[1768175626518,0.00080136,3120.5,3119.8,1.24017578]
[1768175626719,0.00080136,3120.5,3119.9,0.98817578]
[1768175628340,0.00080136,3120.5,3120.1,0.98817578]
[1768175629527,0.00080136,3120.5,3119.6,0.98897946]
[1768175629717,0.00080136,3120.5,3119.7,0.252]
[1768175630053,0.00080136,3120.5,3119.7,1.24017578]
[1768175630222,0.00080136,3120.5,3119.8,0.98817578]
[1768175630422,0.00080136,3120.5,3119.8,1.43282764]
[1768175630646,0.00080136,3120.5,3119.9,0.98817578]
[1768175631153,0.00080136,3120.8,3120.5,0.98817578]
[1768175631353,0.00080136,3120.8,3120.6,0.252]
[1768175641029,0.00080136,3120.8,3120.7,0.252]
[1768175651491,0.00080136,3120.8,3120.7,1.23651537]
[1768175651691,0.00080136,3120.8,3120.7,0.252]
[1768175652684,0.00080136,3120.8,3120.7,1.23651537]
[1768175656458,3.20449193,3121.4,3120.7,1.23651537]
[1768175656658,0.72517607,3121.3,3120.7,1.23651537]
[1768175657980,3.20389593,3121.2,3120.7,1.23651537]
[1768175662698,0.72517607,3121.3,3120.7,1.23651537]
[1768175662871,3.92900383,3121.3,3120.7,1.23651537]
[1768175664706,3.92900383,3121.3,3120.8,0.98451537]
[1768175665702,3.92900383,3121.3,3120.7,0.252]
[1768175666401,0.72517607,3121.3,3120.8,0.98451537]
[1768175666704,0.00080128,3121.4,3120.8,0.98451537]
[1768175668322,0.00080128,3121.4,3120.9,0.98451537]
[1768175671608,0.002,3121.1,3120.9,0.98451537]